bitfinex-derivatives/quotes_BNBF0:USTF0_20250907
["timestamp","ask_amount","ask_price","bid_price","bid_amount"]
[1757235206136,2.57890043,870.82,868.94,0.70724021]
[1757235206333,2.57890043,870.82,868.95,0.70724021]
[1757235206531,2.57890043,870.82,868.96,0.70724021]
[1757235206731,2.57890043,870.81,868.97,0.70724021]
[1757235206938,2.57890043,870.81,868.98,0.70724021]
[1757235207136,2.57890043,870.81,868.99,0.70724021]
[1757235207436,2.57890043,870.81,869.0,0.70724021]
[1757235207633,2.57890043,870.81,869.01,0.70724021]
[1757235207833,2.57890043,870.81,869.02,0.70724021]
[1757235208037,2.57890043,870.81,869.03,0.70724021]
[1757235208336,2.57890043,870.81,869.04,0.70724021]
[1757235208534,2.57890043,870.81,869.05,0.70724021]
[1757235208736,2.57890043,870.68,869.06,0.70724021]
[1757235208938,2.57890043,870.68,869.07,0.70724021]
[1757235209238,2.57890043,870.68,869.08,0.70724021]
[1757235209434,2.57890043,870.68,869.09,0.70724021]
[1757235209637,2.57890043,870.68,869.1,0.70724021]
[1757235209835,2.57890043,870.67,869.11,0.70724021]
[1757235210136,2.57890043,870.67,869.12,0.70724021]
[1757235210336,2.57890043,870.67,869.13,0.70724021]
[1757235210536,2.57890043,870.67,869.14,0.70724021]
[1757235210739,2.57890043,870.67,869.15,0.70724021]
[1757235210941,2.57890043,870.67,869.16,0.70724021]
[1757235211142,2.57890043,870.67,869.17,0.70724021]
[1757235211346,2.57890043,870.66,869.18,0.70724021]
[1757235211547,2.57890043,870.66,869.19,0.70724021]
[1757235211743,2.57890043,870.66,869.2,0.70724021]
[1757235212047,2.57890043,870.65,869.21,0.70724021]
[1757235212244,2.57890043,870.65,869.22,0.70724021]
[1757235212547,2.57890043,870.64,869.23,0.70724021]
[1757235212749,2.57890043,870.64,869.24,0.70724021]
[1757235212944,2.57890043,870.64,869.25,0.70724021]
[1757235213149,2.57890043,870.64,869.26,0.70724021]
[1757235213343,2.57890043,870.64,868.54,1.54235056]
[1757235213344,2.57890043,870.62,868.91,0.76669388]
[1757235213546,2.57890043,870.62,868.9,0.76669388]
[1757235213848,2.57890043,870.64,868.9,0.76669388]
[1757235214343,2.57890043,870.63,868.92,0.76669388]
[1757235214544,2.57890043,870.63,868.94,0.76669388]
[1757235214749,2.57890043,870.63,868.94,1.47575333]
[1757235214950,2.57890043,870.47,868.95,0.70905945]
[1757235215146,3.61513727,871.02,868.96,0.70905945]
[1757235215349,3.61513727,871.02,868.97,0.7092212]
[1757235215548,3.61513727,870.88,868.99,0.77399827]
[1757235215750,3.61513727,870.88,869.0,0.7092212]
[1757235215948,3.61513727,870.88,869.01,0.7092212]
[1757235216147,3.61513727,870.88,869.02,0.7092212]
[1757235216347,3.61513727,870.88,869.03,0.7092212]
[1757235216546,0.1997079,871.06,869.04,0.7092212]
[1757235216750,0.1997079,871.06,869.05,0.7092212]
[1757235216947,0.1997079,871.06,869.06,0.7092212]
[1757235217249,0.1997079,871.06,869.07,0.7092212]
[1757235217448,0.1997079,871.06,869.08,0.7092212]
[1757235217647,0.1997079,871.06,869.09,0.7092212]
[1757235217948,0.1997079,871.06,869.1,0.7092212]
[1757235218152,0.1997079,871.06,869.11,0.7092212]
[1757235218346,0.1997079,871.06,869.12,0.7092212]
[1757235218548,0.1997079,871.06,869.13,0.7092212]
[1757235218752,0.1997079,871.06,869.14,0.7092212]
[1757235219052,0.1997079,871.06,869.15,0.7092212]
[1757235219349,0.1997079,871.06,869.16,0.7092212]
[1757235219549,0.1997079,871.06,869.17,0.7092212]
[1757235219750,0.1997079,871.06,869.18,0.7092212]
[1757235219949,0.1997079,871.06,869.19,0.7092212]
[1757235220151,0.1997079,871.06,869.2,0.7092212]
[1757235220352,0.1997079,871.06,869.21,0.7092212]
[1757235220553,0.1997079,871.06,869.22,0.7092212]
[1757235220753,0.1997079,871.06,869.23,0.7092212]
[1757235220951,0.1997079,871.06,869.24,0.7092212]
[1757235221154,0.1997079,871.06,869.25,0.7092212]
[1757235221357,0.1997079,871.06,869.26,0.7092212]
[1757235221555,0.1997079,871.06,869.27,0.7092212]
[1757235221853,0.1997079,871.06,869.28,0.7092212]
[1757235222052,0.1997079,871.06,869.29,0.7092212]
[1757235222251,0.1997079,871.06,869.3,0.7092212]
[1757235222449,0.1997079,871.06,869.31,0.7092212]
[1757235222653,0.1997079,871.06,869.32,0.7092212]
[1757235222953,0.1997079,871.06,868.89,0.77399827]
[1757235223450,0.1997079,871.06,869.03,0.77399827]
[1757235223653,0.1997079,871.06,869.04,0.72479559]
[1757235223851,0.1997079,871.06,869.05,0.72479559]
[1757235224053,0.1997079,871.06,869.06,0.72479559]
[1757235224250,0.1997079,871.06,869.07,0.72479559]
[1757235224456,0.1997079,871.06,869.08,0.72479559]
[1757235224653,0.1997079,871.06,869.09,0.72479559]
[1757235224954,0.1997079,871.06,869.1,0.72479559]
[1757235225157,0.1997079,871.06,869.11,0.72479559]
[1757235225358,0.1997079,871.06,869.12,0.72479559]
[1757235225552,0.1997079,871.06,869.13,0.72479559]
[1757235225759,0.1997079,871.06,869.14,0.72479559]
[1757235226054,0.1997079,871.06,869.15,0.72479559]
[1757235226257,0.1997079,871.06,869.16,0.72479559]
[1757235226458,0.1997079,871.06,869.17,0.72479559]
[1757235226658,2.57988445,870.9,869.18,0.72479559]
[1757235226856,2.57988445,870.9,869.19,0.72479559]
[1757235227075,2.57988445,870.9,869.2,0.72479559]
[1757235227257,2.57988445,870.9,869.21,0.72479559]
[1757235227558,2.57988445,870.9,869.22,0.72479559]
[1757235227756,2.57988445,870.62,869.23,0.72479559]
[1757235227957,0.1997079,871.06,869.24,0.72479559]
[1757235227958,3.61513727,870.93,869.24,0.72479559]
[1757235228160,3.61513727,870.93,869.25,0.72479559]
[1757235228360,3.61513727,870.93,869.26,0.72479559]
[1757235228558,3.61513727,870.93,869.27,0.72479559]
[1757235228762,3.61513727,870.93,869.28,0.72479559]
[1757235229058,3.61513727,871.0,869.29,0.72479559]
[1757235229261,3.61513727,871.0,869.3,0.72479559]
[1757235229458,3.61513727,871.0,869.31,0.72479559]
[1757235229762,3.61513727,871.0,869.32,0.72479559]
[1757235229962,0.1997079,871.06,869.33,0.72479559]
[1757235229963,3.61513727,870.97,869.33,0.72479559]
[1757235230159,3.61513727,870.97,869.34,0.72479559]
[1757235230360,3.61513727,870.97,869.35,0.72479559]
[1757235230559,3.61513727,870.97,869.36,0.72479559]
[1757235230759,3.61513727,870.97,869.37,0.72479559]
[1757235230963,3.61513727,870.97,869.13,0.77399827]
[1757235230964,3.61513727,870.97,869.38,0.72479559]
[1757235231160,3.61513727,872.71,869.58,0.77399827]
[1757235231365,0.19963744,871.61,869.59,0.72479559]
[1757235231667,3.61513727,872.71,869.6,0.72479559]
[1757235231865,0.19952584,871.61,869.61,0.72479559]
[1757235232062,0.19952584,871.61,869.62,0.72479559]
[1757235232262,0.19952584,871.61,869.63,0.72479559]
[1757235232466,0.19952584,871.61,869.64,0.72479559]
[1757235232666,0.19952584,871.61,869.65,0.72479559]
[1757235232867,0.19952584,871.61,869.66,0.72479559]
[1757235233069,0.19952584,871.61,869.67,0.72479559]
[1757235233269,0.19952584,871.61,869.4,0.77399827]
[1757235233466,0.19952584,871.61,869.11,1.02823371]
[1757235233467,0.19952584,871.61,869.41,0.72633518]
[1757235233671,0.19952584,871.61,869.42,0.72633518]
[1757235233871,0.19952584,871.61,869.43,0.72633518]
[1757235234065,0.19952584,871.61,869.44,0.72633518]
[1757235234268,0.19952584,871.61,869.45,0.72633518]
[1757235234467,0.19952584,871.61,869.46,0.72633518]
[1757235234670,0.19952584,871.61,869.47,0.72633518]
[1757235234869,0.19952584,871.61,869.48,0.72633518]
[1757235235069,0.19952584,871.61,868.45,1.54235056]
[1757235235070,0.19952584,871.61,869.02,0.77399827]
[1757235235272,0.19952584,871.61,869.05,0.77399827]
[1757235235470,0.19952584,871.61,869.06,0.72570849]
[1757235235671,0.19952584,871.61,869.07,1.49970676]
[1757235235870,0.19952584,871.61,869.08,0.72570849]
[1757235236171,0.19952584,871.61,869.09,0.72570849]
[1757235236374,0.19952584,871.61,869.09,0.77399827]
[1757235236574,0.19952584,871.61,869.1,0.72570849]
[1757235236775,0.19952584,871.61,869.11,0.72570849]
[1757235236972,0.19952584,871.61,869.12,0.72570849]
[1757235237176,0.19952584,871.61,869.13,0.72570849]
[1757235237372,0.19952584,871.61,869.14,0.72570849]
[1757235237672,0.19952584,871.61,869.15,0.72570849]
[1757235237972,0.19952584,871.61,869.16,0.72570849]
[1757235238173,0.19952584,871.61,869.17,0.72570849]
[1757235238373,0.19952584,871.61,869.18,0.72570849]
[1757235238573,0.19952584,871.61,869.19,0.72570849]
[1757235238772,0.19952584,871.61,869.2,0.72570849]
[1757235239073,0.19952584,871.61,869.21,0.72570849]
[1757235239276,0.19952584,871.61,869.22,0.72570849]
[1757235239476,0.19952584,871.61,869.23,0.72570849]
[1757235239673,0.19952584,871.61,869.24,0.72570849]
[1757235239872,0.19952584,871.61,869.25,0.72570849]
[1757235240076,0.19952584,871.61,869.26,0.72570849]
[1757235240276,0.19952584,871.61,869.27,0.72570849]
[1757235240474,0.19952584,871.61,869.28,0.72570849]
[1757235240775,0.19952584,871.61,869.29,0.72570849]
[1757235240977,0.19952584,871.61,869.3,0.72570849]
[1757235241173,0.19952584,871.61,869.31,0.72570849]
[1757235241376,0.19952584,871.61,869.32,0.72570849]
[1757235241576,0.19952584,871.61,869.33,0.72570849]
[1757235241874,0.19952584,871.61,869.34,0.72570849]
[1757235242075,0.19952584,871.61,869.35,0.72570849]
[1757235242275,0.19952584,871.61,869.36,0.72570849]
[1757235242573,0.19952584,871.61,869.37,0.72570849]
[1757235242772,0.19952584,871.61,869.38,0.72570849]
[1757235242976,0.19952584,871.61,869.39,0.72570849]
[1757235243176,0.19952584,871.61,869.4,0.72570849]
[1757235243379,0.19952584,871.61,869.41,0.72570849]
[1757235243678,0.19952584,871.61,869.42,0.72570849]
[1757235243878,0.19952584,871.61,869.43,0.72570849]
[1757235244078,0.19952584,871.61,869.44,0.72570849]
[1757235244280,0.19952584,871.61,869.45,0.72570849]
[1757235244480,0.19952584,871.61,869.46,0.72570849]
[1757235244676,0.19952584,871.61,869.47,0.72570849]
[1757235244976,0.19952584,871.61,869.48,0.72570849]
[1757235245178,0.19952584,871.61,869.49,0.72570849]
[1757235245376,0.19952584,871.61,869.26,0.77399827]
[1757235245377,0.19952584,871.61,869.5,0.72570849]
[1757235245580,0.19952584,871.61,869.51,0.72570849]
[1757235245783,0.19952584,871.61,869.52,0.72570849]
[1757235245976,0.19952584,871.61,869.53,0.72570849]
[1757235246277,0.19952584,871.61,869.54,0.72570849]
[1757235246577,0.19952584,871.61,869.55,0.72570849]
[1757235246776,0.19952584,871.61,869.56,0.72570849]
[1757235246981,0.19952584,871.61,869.57,0.72570849]
[1757235247183,0.19952584,871.61,869.58,0.72570849]
[1757235247381,0.19952584,871.61,869.59,0.72570849]
[1757235247678,0.19952584,871.61,869.6,0.72570849]
[1757235247883,0.19952584,871.61,869.61,0.72570849]
[1757235248081,0.19952584,871.61,869.62,0.72570849]
[1757235248279,0.19952584,871.61,869.63,0.72570849]
[1757235248582,0.19952584,871.61,869.64,0.72570849]
[1757235248781,0.19952584,871.61,869.65,0.72570849]
[1757235248978,0.19952584,871.61,869.66,0.72570849]
[1757235249182,0.19952584,871.61,869.67,0.72570849]
[1757235249380,0.19952584,871.61,869.68,0.72570849]
[1757235249580,0.19952584,871.61,869.69,0.72570849]
[1757235249781,0.19952584,871.61,869.37,0.77399827]
[1757235250080,0.19952584,871.61,869.38,0.71820636]
[1757235250282,2.56243728,871.5,869.39,0.71820636]
[1757235250480,2.56243728,871.5,869.4,0.71820636]
[1757235250780,2.56243728,871.6,869.41,0.71820636]
[1757235250984,2.56243728,871.6,869.42,0.71820636]
[1757235251180,2.56243728,871.6,869.43,0.71820636]
[1757235251481,1.53290929,870.75,868.99,0.77399827]
[1757235251685,1.53290929,870.75,869.0,0.67295281]
[1757235251880,1.53290929,870.75,869.01,0.67295281]
[1757235252082,1.53290929,870.75,869.02,0.67295281]
[1757235252280,1.53290929,870.75,869.03,0.67295281]
[1757235252586,1.53290929,870.7,869.04,0.67295281]
[1757235252786,1.53290929,870.67,869.05,0.67295281]
[1757235252986,1.53290929,870.66,869.06,0.67295281]
[1757235253185,1.53290929,870.65,869.07,0.67295281]
[1757235253380,1.53290929,870.65,869.08,0.67295281]
[1757235253682,1.53290929,870.65,869.09,0.67295281]
[1757235253885,1.53290929,870.65,869.1,0.67295281]
[1757235254180,1.53290929,870.65,869.11,0.67295281]
[1757235254382,1.53290929,870.65,869.12,0.67295281]
[1757235254582,1.53290929,870.65,869.13,0.67295281]
[1757235254781,1.53290929,870.65,869.14,0.67295281]
[1757235254986,1.53290929,870.65,869.15,0.67295281]
[1757235255186,1.53290929,870.65,869.16,0.67295281]
[1757235255482,1.53290929,870.65,869.17,0.67295281]
[1757235255783,1.53290929,870.65,869.18,0.67295281]
[1757235255983,1.53290929,870.65,869.19,0.67295281]
[1757235256186,1.53290929,870.65,869.2,0.67295281]
[1757235256485,1.53290929,870.93,869.21,0.67295281]
[1757235256686,1.53290929,870.93,869.22,0.67295281]
[1757235256986,1.53290929,870.93,869.23,0.67295281]
[1757235257185,0.19952584,871.61,868.91,0.77399827]
[1757235257186,1.53290929,870.92,869.24,0.67295281]
[1757235257481,1.53290929,870.93,869.25,0.67295281]
[1757235257681,1.53290929,870.93,869.26,0.67295281]
[1757235257882,1.53290929,870.92,869.27,0.67295281]
[1757235258087,1.53290929,870.92,869.28,0.67295281]
[1757235258282,1.53290929,870.92,869.29,0.67295281]
[1757235258484,1.53290929,870.92,869.3,0.67295281]
[1757235258687,1.53290929,870.92,869.31,0.67295281]
[1757235258885,1.53290929,870.92,869.32,0.67295281]
[1757235259084,1.53290929,870.92,869.33,0.67295281]
[1757235259285,1.53290929,870.92,869.34,0.67295281]
[1757235259484,1.53290929,870.92,869.35,0.67295281]
[1757235259686,1.53290929,870.92,868.91,0.77399827]
[1757235259885,1.53290929,870.93,868.92,0.6729325]
[1757235260089,1.53290929,870.92,868.93,0.6729325]
[1757235260290,1.53290929,870.92,868.94,0.6729325]
[1757235260486,1.53290929,870.93,868.95,0.6729325]
[1757235260690,1.53290929,870.93,868.96,0.6729325]
[1757235260885,1.53290929,870.93,868.97,0.6729325]
[1757235261087,1.53290929,870.93,868.98,0.6729325]
[1757235261387,1.53290929,870.92,868.99,0.6729325]
[1757235261585,1.53290929,870.97,869.0,0.6729325]
[1757235261786,1.53290929,870.97,869.01,0.6729325]
[1757235261990,1.53290929,870.97,869.02,0.6729325]
[1757235262287,1.53290929,870.96,869.03,0.6729325]
[1757235262490,1.53290929,870.96,868.9,0.77399827]
[1757235262491,1.53290929,870.96,869.04,0.6729325]
[1757235262786,1.53290929,870.96,869.05,0.6729325]
[1757235262986,1.53290929,870.96,869.06,0.6729325]
[1757235263189,1.53290929,870.95,869.07,0.6729325]
[1757235263390,1.53290929,871.36,869.3,0.77399827]
[1757235263590,1.53290929,871.36,869.31,0.6729325]
[1757235263791,1.53290929,871.36,869.32,0.6729325]
[1757235264089,1.53290929,871.37,869.33,0.6729325]
[1757235264293,1.53290929,871.36,869.34,0.6729325]
[1757235264592,1.53290929,871.46,869.38,0.77399827]
[1757235264888,1.53290929,871.49,869.41,0.77399827]
[1757235265187,1.53290929,871.49,869.42,0.6729325]
[1757235265392,1.53290929,871.49,869.43,0.6729325]
[1757235265687,1.53290929,871.49,869.44,0.6729325]
[1757235265891,1.53290929,871.49,869.45,0.6729325]
[1757235266188,1.53290929,871.48,869.46,0.6729325]
[1757235266387,1.53290929,871.48,869.41,0.77399827]
[1757235266388,1.53290929,871.48,869.47,0.6729325]
[1757235266592,1.53290929,871.48,869.48,0.6729325]
[1757235266792,1.53290929,871.48,869.49,0.6729325]
[1757235267088,1.53290929,871.48,869.5,0.6729325]
[1757235267390,1.53290929,871.43,869.51,0.6729325]
[1757235267589,1.53290929,871.43,869.52,0.6729325]
[1757235267792,1.53290929,871.43,869.53,0.6729325]
[1757235267993,1.53290929,871.43,869.54,0.6729325]
[1757235268193,1.53290929,871.42,869.55,0.6729325]
[1757235268492,1.53290929,871.42,869.56,0.6729325]
[1757235268691,1.53290929,871.42,869.57,0.6729325]
[1757235268892,1.53290929,871.42,869.58,0.6729325]
[1757235269092,1.53290929,871.42,869.59,0.6729325]
[1757235269293,1.53290929,871.42,869.6,0.6729325]
[1757235269494,1.53290929,871.42,869.61,0.6729325]
[1757235269793,1.53290929,871.42,869.18,1.02823371]
[1757235269794,1.53290929,871.37,869.62,0.6729325]
[1757235269991,1.53290929,871.37,869.63,0.6729325]
[1757235270196,1.53290929,871.4,869.64,0.6729325]
[1757235270492,1.53290929,871.39,869.65,0.6729325]
[1757235270695,1.53290929,871.4,869.66,0.6729325]
[1757235270990,1.53290929,871.4,869.67,0.6729325]
[1757235271193,1.53290929,871.41,869.68,0.6729325]
[1757235271398,1.53290929,871.4,869.69,0.6729325]
[1757235271697,1.53290929,871.4,869.7,0.6729325]
[1757235271897,1.53290929,871.4,869.71,0.6729325]
[1757235272093,1.53290929,871.4,869.72,0.6729325]
[1757235272399,1.53290929,871.4,869.73,0.6729325]
[1757235272694,1.53290929,871.4,869.74,0.6729325]
[1757235272899,1.53290929,871.4,869.75,0.6729325]
[1757235273100,1.53290929,871.4,868.36,2.54560225]
[1757235273101,1.53290929,871.37,869.76,0.6729325]
[1757235273399,1.53290929,871.37,868.41,2.54560225]
[1757235273400,1.53290929,870.9,869.16,0.77399827]
[1757235273598,1.53290929,870.9,869.17,0.67244866]
[1757235273801,1.53290929,870.9,869.18,0.67244866]
[1757235274001,1.53290929,870.9,869.19,0.67244866]
[1757235274301,1.53290929,870.9,869.2,0.67244866]
[1757235274496,1.53290929,870.89,869.21,0.67244866]
[1757235274698,1.53290929,870.89,869.22,0.67244866]
[1757235274899,1.53290929,870.89,869.23,0.67244866]
[1757235275099,1.53290929,870.89,869.24,0.67244866]
[1757235275298,1.53290929,870.89,869.25,0.67244866]
[1757235275498,1.53290929,870.88,869.26,0.67244866]
[1757235275699,1.53290929,870.88,869.27,0.67244866]
[1757235275999,1.53290929,870.88,869.28,0.67244866]
[1757235276199,1.53290929,870.88,869.29,0.67244866]
[1757235276399,1.53290929,870.88,869.3,0.67244866]
[1757235276697,1.53290929,870.88,869.31,0.67244866]
[1757235276903,1.53290929,870.88,869.32,0.67244866]
[1757235277101,1.53290929,870.88,869.33,0.67244866]
[1757235277303,1.53290929,870.86,869.34,0.67244866]
[1757235277504,1.53290929,870.86,869.35,0.67244866]
[1757235277800,1.53290929,870.86,869.36,0.67244866]
[1757235277999,1.53290929,870.86,869.37,0.67244866]
[1757235278199,1.53290929,870.85,869.38,0.67244866]
[1757235278399,1.53290929,870.85,869.16,0.77399827]
[1757235278400,1.53290929,870.85,869.39,0.67244866]
[1757235278700,1.53290929,870.85,869.4,0.67244866]
[1757235278899,1.53290929,870.85,869.41,0.67244866]
[1757235279098,1.53290929,871.08,869.42,0.67244866]
[1757235279302,1.53290929,870.99,869.43,0.67244866]
[1757235279501,1.53290929,870.99,869.44,0.67244866]
[1757235279704,1.53290929,870.99,869.45,0.67244866]
[1757235279899,1.53290929,870.99,869.46,0.67244866]
[1757235280102,1.53290929,870.99,869.47,0.67244866]
[1757235280300,1.53290929,870.98,869.48,0.67244866]
[1757235280501,1.53290929,870.98,869.49,0.67244866]
[1757235280803,1.53290929,870.98,869.02,0.77399827]
[1757235281004,1.53290929,870.98,869.03,0.67218613]
[1757235281200,1.53290929,870.95,869.04,0.67218613]
[1757235281504,1.53290929,870.95,869.05,0.67218613]
[1757235281705,1.53290929,870.95,869.06,0.67218613]
[1757235281904,1.53290929,870.95,869.07,0.67218613]
[1757235282105,1.53290929,870.76,869.08,1.4461844]
[1757235282301,1.53290929,870.74,869.09,0.67218613]
[1757235283105,0.10027445,870.74,869.09,1.4461844]
[1757235283401,2.56243728,871.58,869.36,0.77399827]
[1757235283602,0.19958534,871.74,869.37,0.67218613]
[1757235283801,0.19958534,871.74,869.38,0.67218613]
[1757235284001,0.19958534,871.74,869.39,0.67218613]
[1757235284203,0.19958534,871.74,869.36,0.77399827]
[1757235284204,0.19958534,871.74,869.4,0.67218613]
[1757235284402,0.19958534,871.74,869.41,0.67218613]
[1757235284701,0.19958534,871.74,869.42,0.67218613]
[1757235284906,0.19958534,871.74,869.43,0.67218613]
[1757235285105,0.19958534,871.74,869.44,0.67218613]
[1757235285309,0.19958534,871.74,869.45,0.67218613]
[1757235285607,0.19958534,871.74,869.46,0.67218613]
[1757235285808,0.19958534,871.74,869.47,0.67218613]
[1757235286109,0.19958534,871.74,869.48,0.67218613]
[1757235286404,0.19958534,871.74,869.49,0.67218613]
[1757235286611,0.19958534,871.74,869.5,0.67218613]
[1757235286806,2.56243728,871.61,869.51,0.67218613]
[1757235287005,2.56243728,871.61,869.52,0.67218613]
[1757235287211,2.56243728,871.57,869.53,0.67218613]
[1757235287409,2.56243728,871.57,869.54,0.67218613]
[1757235287609,2.56243728,871.57,869.55,0.67218613]
[1757235287809,2.56243728,871.57,869.56,0.67218613]
[1757235288107,2.56243728,871.57,869.57,0.67218613]
[1757235288306,2.56243728,871.52,869.58,0.67218613]
[1757235288507,0.19958534,871.74,869.59,0.67218613]
[1757235288706,0.19958534,871.74,869.6,0.67218613]
[1757235288912,0.19958534,871.74,869.61,0.67218613]
[1757235289111,0.19958534,871.74,869.62,0.67218613]
[1757235289312,0.19958534,871.74,869.63,0.67218613]
[1757235289512,0.19958534,871.74,869.64,0.67218613]
[1757235289714,0.19958534,871.74,869.65,0.67218613]
[1757235290014,0.19958534,871.74,869.66,0.67218613]
[1757235290213,0.19958534,871.74,869.67,0.67218613]
[1757235290413,0.19958534,871.74,869.68,0.67218613]
[1757235290612,0.19958534,871.74,869.69,0.67218613]
[1757235290814,0.19958534,871.74,869.7,0.67218613]
[1757235291012,0.19958534,871.74,869.71,0.67218613]
[1757235291311,0.19958534,871.74,869.72,0.67218613]
[1757235291511,0.19958534,871.74,869.73,0.67218613]
[1757235291811,0.19958534,871.74,869.74,0.67218613]
[1757235292014,0.19958534,871.74,869.75,0.67218613]
[1757235292316,0.19958534,871.74,869.76,0.67218613]
[1757235292512,0.19958534,871.74,869.77,0.67218613]
[1757235292814,0.19958534,871.74,869.78,0.67218613]
[1757235293013,0.19958534,871.74,869.79,0.67218613]
[1757235293212,0.19958534,871.74,869.8,0.67218613]
[1757235293417,0.19958534,871.74,869.07,0.77399827]
[1757235293614,0.19958534,871.74,869.08,0.68997048]
[1757235293814,2.56243728,871.52,869.14,0.77399827]
[1757235294112,2.56243728,871.52,869.15,0.68997048]
[1757235294317,2.56243728,871.53,869.16,0.68997048]
[1757235294517,2.56243728,871.53,869.17,0.68997048]
[1757235294818,2.56243728,871.53,869.18,0.68997048]
[1757235295112,2.56243728,871.53,869.19,0.68997048]
[1757235295313,2.56243728,871.53,869.2,0.68997048]
[1757235295515,2.56243728,871.53,869.21,0.68997048]
[1757235295817,2.56243728,871.53,867.7,2.54560225]
[1757235295818,2.56243728,871.59,869.22,0.68997048]
[1757235296015,2.56243728,871.59,869.23,0.68997048]
[1757235296218,2.56243728,871.59,869.24,0.68997048]
[1757235296417,2.56243728,871.59,869.25,0.68997048]
[1757235296620,2.56243728,871.59,869.26,0.68997048]
[1757235296918,2.56243728,871.56,869.27,0.68997048]
[1757235297116,2.56243728,871.56,869.28,0.68997048]
[1757235297417,2.56243728,871.56,869.13,0.77399827]
[1757235297418,2.56243728,871.56,869.29,0.68997048]
[1757235297618,2.56243728,871.56,869.3,0.68997048]
[1757235297821,2.56243728,871.56,869.31,0.68997048]
[1757235298021,2.56243728,871.54,869.32,0.68997048]
[1757235298218,2.56243728,871.54,869.33,0.68997048]
[1757235298517,2.56243728,871.48,869.34,0.68997048]
[1757235298722,2.56243728,871.48,869.35,0.68997048]
[1757235298922,2.56243728,871.48,869.36,0.68997048]
[1757235299119,2.56243728,871.48,869.37,0.68997048]
[1757235299423,2.56243728,871.48,869.38,0.68997048]
[1757235299623,2.56243728,871.48,869.39,0.68997048]
[1757235299823,2.56243728,871.48,869.4,0.68997048]
[1757235300023,2.56243728,871.48,869.14,0.77399827]
[1757235300024,2.56243728,871.48,869.41,0.68997048]
[1757235300219,2.56243728,871.48,869.42,0.68997048]
[1757235300418,2.56243728,871.48,869.43,0.68997048]
[1757235300620,2.56243728,871.48,869.44,0.68997048]
[1757235300822,2.56243728,871.48,869.45,0.68997048]
[1757235301024,2.56243728,871.48,869.46,0.68997048]
[1757235301319,2.56243728,871.48,869.47,0.68997048]
[1757235301522,2.56243728,871.48,869.48,0.68997048]
[1757235301722,2.56243728,871.48,869.49,0.68997048]
[1757235301926,2.56243728,871.48,869.5,0.68997048]
[1757235302119,2.56243728,871.48,869.51,0.68997048]
[1757235302320,2.56243728,871.48,869.52,0.68997048]
[1757235302520,2.56243728,871.48,869.53,0.68997048]
[1757235302722,2.56243728,871.48,869.54,0.68997048]
[1757235302923,2.56243728,871.48,869.55,0.68997048]
[1757235303123,2.56243728,871.48,869.56,0.68997048]
[1757235303323,1.54236448,870.55,869.57,0.69015074]
[1757235303525,2.56243728,871.48,869.58,0.69015074]
[1757235303726,2.56243728,871.55,869.59,0.69015074]
[1757235304025,2.56243728,871.55,869.6,0.69015074]
[1757235304325,2.56243728,871.62,869.61,0.69015074]
[1757235304521,2.56243728,871.62,869.62,0.69015074]
[1757235304722,2.56243728,871.62,869.63,0.69015074]
[1757235304920,2.56243728,871.62,869.64,0.69015074]
[1757235305121,2.56243728,871.62,869.65,0.69015074]
[1757235305322,2.56243728,871.59,869.66,0.69015074]
[1757235305522,2.56243728,871.59,869.32,0.77399827]
[1757235305726,2.56243728,871.29,869.33,0.70696293]
[1757235306021,2.56243728,871.29,869.34,0.70696293]
[1757235306222,2.56243728,871.29,869.35,0.70696293]
[1757235306425,2.56243728,871.29,869.36,0.70696293]
[1757235306622,2.56243728,871.29,869.37,0.70696293]
[1757235306825,2.56243728,871.25,869.38,0.70696293]
[1757235307022,2.56243728,871.25,868.98,0.77399827]
[1757235307224,2.56243728,871.25,868.99,0.70773672]
[1757235307525,2.56243728,870.93,869.0,0.70773672]
[1757235307827,2.56243728,870.94,869.01,0.70773672]
[1757235308025,2.56243728,870.94,869.02,0.70773672]
[1757235308223,2.56243728,870.94,869.03,0.70773672]
[1757235308422,2.56243728,870.94,869.04,0.70773672]
[1757235308624,2.56243728,870.94,868.56,0.77399827]
[1757235308827,2.56243728,870.62,868.57,0.70581476]
[1757235309129,2.56243728,870.62,868.58,0.70581476]
[1757235309325,2.56243728,870.66,868.59,0.70581476]
[1757235309525,2.56243728,870.66,868.6,0.70581476]
[1757235309729,2.56243728,870.66,868.61,0.70581476]
[1757235310028,2.56243728,870.66,868.62,0.70581476]
[1757235310228,2.56243728,870.66,868.63,0.70581476]
[1757235310424,2.56243728,870.74,868.64,0.70581476]
[1757235310623,2.56243728,870.74,868.65,0.70581476]
[1757235310927,2.56243728,870.74,868.66,0.70581476]
[1757235311123,2.56243728,870.74,868.47,0.77399827]
[1757235311124,2.56243728,870.74,868.67,0.70581476]
[1757235311329,3.61513727,871.13,868.68,0.70581476]
[1757235311524,2.56243728,871.23,868.69,0.70581476]
[1757235311825,2.56243728,871.23,868.7,0.70581476]
[1757235312029,2.56243728,871.25,868.71,0.70581476]
[1757235312229,2.56243728,871.25,868.72,0.70581476]
[1757235312529,2.56243728,871.04,868.73,0.70581476]
[1757235312726,2.56243728,871.04,868.74,0.70581476]
[1757235313027,2.56243728,871.04,868.75,0.70581476]
[1757235313227,2.56243728,871.04,868.76,0.70581476]
[1757235313432,2.56243728,871.04,868.98,0.77399827]